[Event "*** Titled Tuesday Blitz"]
[Site "Chess.com"]
[Date "2019.09.03"]
[Round "7"]
[White "Witik"]
[Black "TenisMaster"]
[Result "1-0"]
[WhiteElo "2565"]
[BlackElo "2763"]
[TimeControl "180+2"]
[EndTime "16:37:07 PDT"]
[Termination "Witik won by resignation"]

1. d4 {[%clk 0:02:59]} 1... Nf6 {[%clk 0:02:57.1]} 2. Bf4 {[%clk 0:02:55.5]}
2... g6 {[%clk 0:02:54.8]} 3. Nf3 {[%clk 0:02:55.6]} 3... Bg7 {[%clk 0:02:55.1]}
4. Nc3 {[%clk 0:02:57.1]} 4... d6 {[%clk 0:02:50.3]} 5. e4 {[%clk 0:02:45.2]}
5... a6 {[%clk 0:02:42.1]} 6. h3 {[%clk 0:02:35.7]} 6... Nc6 {[%clk 0:02:41]} 7.
Bh2 {[%clk 0:02:28.2]} 7... O-O {[%clk 0:02:41.1]} 8. Be2 {[%clk 0:02:19.9]}
8... b5 {[%clk 0:02:40.7]} 9. e5 {[%clk 0:02:19.7]} 9... Nd7 {[%clk 0:02:39.3]}
10. e6 {[%clk 0:02:02.3]} 10... fxe6 {[%clk 0:02:39.7]} 11. d5 {[%clk
0:02:03.5]} 11... Nce5 {[%clk 0:02:37.1]} 12. dxe6 {[%clk 0:02:04.7]} 12... Nc5
{[%clk 0:02:22.8]} 13. Nxe5 {[%clk 0:02:00]} 13... dxe5 {[%clk 0:02:24.7]} 14.
Qd5 {[%clk 0:01:54.9]} 14... Qxd5 {[%clk 0:02:19]} 15. Nxd5 {[%clk 0:01:55.8]}
15... Bb7 {[%clk 0:02:01.8]} 16. O-O-O {[%clk 0:00:34.3]} 16... Rxf2 {[%clk
0:01:52.5]} 17. Bg4 {[%clk 0:00:29.6]} 17... Bxd5 {[%clk 0:00:45.1]} 18. Rxd5
{[%clk 0:00:29.8]} 18... Na4 {[%clk 0:00:43.6]} 19. Bxe5 {[%clk 0:00:21.9]}
19... Bxe5 {[%clk 0:00:42.6]} 20. Rxe5 {[%clk 0:00:22.2]} 20... Rd8 {[%clk
0:00:43.9]} 21. Rd1 {[%clk 0:00:10.9]} 21... Rxd1+ {[%clk 0:00:44.2]} 22. Bxd1
{[%clk 0:00:12.1]} 22... Rxg2 {[%clk 0:00:44.6]} 23. Rd5 {[%clk 0:00:13.2]}
23... Kg7 {[%clk 0:00:44.3]} 24. Rd7 {[%clk 0:00:11.3]} 24... Kf6 {[%clk
0:00:45.2]} 25. Rxc7 {[%clk 0:00:13]} 25... Nb6 {[%clk 0:00:42.2]} 26. Rc6
{[%clk 0:00:10.6]} 26... Nc4 {[%clk 0:00:43.2]} 27. b3 {[%clk 0:00:11.9]} 27...
Ne3 {[%clk 0:00:43.5]} 28. Bf3 {[%clk 0:00:12.8]} 28... Rg3 {[%clk 0:00:40.4]}
29. Be4 {[%clk 0:00:13.9]} 29... a5 {[%clk 0:00:39.3]} 30. Ra6 {[%clk
0:00:14.2]} 30... Rxh3 {[%clk 0:00:38.1]} 31. Rxa5 {[%clk 0:00:15.2]} 31... b4
{[%clk 0:00:39.3]} 32. Rb5 {[%clk 0:00:16]} 32... h5 {[%clk 0:00:40.2]} 33. Rxb4
{[%clk 0:00:17.4]} 33... h4 {[%clk 0:00:41.5]} 34. a4 {[%clk 0:00:17.9]} 34...
Rg3 {[%clk 0:00:40.7]} 35. a5 {[%clk 0:00:18.7]} 35... h3 {[%clk 0:00:38.1]} 36.
a6 {[%clk 0:00:19.7]} 36... Rg1+ {[%clk 0:00:37.6]} 37. Kd2 {[%clk 0:00:13.1]}
37... Nf1+ {[%clk 0:00:38.8]} 38. Kd3 {[%clk 0:00:13.6]} 38... Ng3 {[%clk
0:00:39.7]} 39. Bb7 {[%clk 0:00:14.7]} 39... Rd1+ {[%clk 0:00:32.8]} 40. Kc3
{[%clk 0:00:13.3]} 40... Ne2+ {[%clk 0:00:27.3]} 41. Kb2 {[%clk 0:00:14.5]}
41... Rd8 {[%clk 0:00:14.3]} 42. a7 {[%clk 0:00:15.7]} 42... g5 {[%clk
0:00:15.6]} 43. a8=Q {[%clk 0:00:12]} 43... Rxa8 {[%clk 0:00:15.9]} 44. Bxa8
{[%clk 0:00:13.9]} 44... Kf5 {[%clk 0:00:13.1]} 45. Bf3 {[%clk 0:00:10.6]} 45...
Nf4 {[%clk 0:00:14.1]} 46. Rb8 {[%clk 0:00:10.8]} 46... g4 {[%clk 0:00:13.5]}
47. Rf8+ {[%clk 0:00:11.7]} 47... Kg5 {[%clk 0:00:14.9]} 48. Rg8+ {[%clk
0:00:12.6]} 48... Ng6 {[%clk 0:00:16.6]} 49. Rxg6+ {[%clk 0:00:13.3]} 49... Kxg6
{[%clk 0:00:16.8]} 50. Bxg4 {[%clk 0:00:14.9]} 1-0

[Event "*** Titled Tuesday Blitz"]
[Site "Chess.com"]
[Date "2019.09.03"]
[Round "7"]
[White "Korchmar_Vasiliy"]
[Black "JakeCarlosBanawa"]
[Result "0-1"]
[WhiteElo "2666"]
[BlackElo "2555"]
[TimeControl "180+2"]
[EndTime "16:37:09 PDT"]
[Termination "JakeCarlosBanawa won by resignation"]

1. d4 {[%clk 0:03:00.8]} 1... Nf6 {[%clk 0:03:00.3]} 2. c4 {[%clk 0:03:01.9]}
2... e6 {[%clk 0:03:01.5]} 3. g3 {[%clk 0:03:02.5]} 3... Bb4+ {[%clk 0:02:59.6]}
4. Nd2 {[%clk 0:03:03.1]} 4... c5 {[%clk 0:02:18.2]} 5. a3 {[%clk 0:03:03]} 5...
Bxd2+ {[%clk 0:02:17.4]} 6. Qxd2 {[%clk 0:03:04.9]} 6... cxd4 {[%clk 0:02:16.6]}
7. Nf3 {[%clk 0:03:06.2]} 7... Nc6 {[%clk 0:02:15.3]} 8. Nxd4 {[%clk 0:03:05.7]}
8... Ne4 {[%clk 0:02:02.9]} 9. Nxc6 {[%clk 0:02:46.5]} 9... bxc6 {[%clk
0:01:47.2]} 10. Qd4 {[%clk 0:02:47.1]} 10... Nf6 {[%clk 0:01:40.6]} 11. c5
{[%clk 0:02:40.8]} 11... a5 {[%clk 0:01:34.1]} 12. Bf4 {[%clk 0:02:37]} 12...
O-O {[%clk 0:01:29.8]} 13. Bd6 {[%clk 0:02:38.2]} 13... Re8 {[%clk 0:01:30.2]}
14. Bg2 {[%clk 0:02:39.7]} 14... e5 {[%clk 0:01:25.7]} 15. Qc3 {[%clk
0:02:08.8]} 15... Ba6 {[%clk 0:01:22.4]} 16. O-O-O {[%clk 0:02:02.8]} 16... e4
{[%clk 0:01:14.6]} 17. Rd2 {[%clk 0:01:51.2]} 17... Nd5 {[%clk 0:01:11.2]} 18.
Qd4 {[%clk 0:01:52.1]} 18... f5 {[%clk 0:01:08.7]} 19. g4 {[%clk 0:01:50.8]}
19... Qg5 {[%clk 0:01:01]} 20. h4 {[%clk 0:01:34]} 20... Qxg4 {[%clk 0:00:55.3]}
21. Bh3 {[%clk 0:01:35.5]} 21... Qxh4 {[%clk 0:00:46.9]} 22. Rg1 {[%clk
0:01:34.1]} 22... Qf6 {[%clk 0:00:29.2]} 23. Qxf6 {[%clk 0:01:26.6]} 23... Nxf6
{[%clk 0:00:31.1]} 24. Bxf5 {[%clk 0:01:28.2]} 24... e3 {[%clk 0:00:32.4]} 25.
fxe3 {[%clk 0:01:25.6]} 25... Rxe3 {[%clk 0:00:34.3]} 26. Rg2 {[%clk 0:01:21.8]}
26... Rae8 {[%clk 0:00:33.8]} 27. Kd1 {[%clk 0:01:17.2]} 27... g6 {[%clk
0:00:29.6]} 28. Bf4 {[%clk 0:01:12.2]} 28... Rxe2 {[%clk 0:00:24]} 29. Bb1
{[%clk 0:00:45]} 29... Re1+ {[%clk 0:00:20.4]} 30. Kc2 {[%clk 0:00:45.6]} 30...
Nd5 {[%clk 0:00:20.2]} 31. Ba2 {[%clk 0:00:46]} 31... R8e6 {[%clk 0:00:13.6]}
32. Bh6 {[%clk 0:00:39.2]} 32... Kf7 {[%clk 0:00:09.8]} 33. Rdf2+ {[%clk
0:00:13.7]} 33... Rf6 {[%clk 0:00:10.6]} 34. Bg5 {[%clk 0:00:15.3]} 34... Rf5
{[%clk 0:00:10.6]} 35. Kd2 {[%clk 0:00:11.4]} 35... Re5 {[%clk 0:00:07.5]} 36.
Bh6 {[%clk 0:00:08.3]} 36... Ke7 {[%clk 0:00:04.1]} 37. Bg7 {[%clk 0:00:07.3]}
37... Nf6 {[%clk 0:00:02.4]} 38. Bh8 {[%clk 0:00:02.8]} 38... Ne4+ {[%clk
0:00:02.8]} 39. Ke3 {[%clk 0:00:03.6]} 39... Nxf2+ {[%clk 0:00:03.8]} 40. Bxe5
{[%clk 0:00:04.2]} 40... Rxe5+ {[%clk 0:00:03]} 41. Kxf2 {[%clk 0:00:06.1]}
41... Re2+ {[%clk 0:00:04.7]} 42. Kg1 {[%clk 0:00:07.6]} 42... Rxg2+ {[%clk
0:00:05.9]} 43. Kxg2 {[%clk 0:00:09.5]} 43... d6 {[%clk 0:00:06.3]} 44. b4
{[%clk 0:00:11.4]} 44... axb4 {[%clk 0:00:04.6]} 45. axb4 {[%clk 0:00:12.3]}
45... dxc5 {[%clk 0:00:06.3]} 46. bxc5 {[%clk 0:00:14.2]} 46... Bd3 {[%clk
0:00:07.3]} 47. Bg8 {[%clk 0:00:15.8]} 47... h6 {[%clk 0:00:07.5]} 48. Kg3
{[%clk 0:00:17.4]} 48... Be4 {[%clk 0:00:07.6]} 49. Kf4 {[%clk 0:00:18.5]} 49...
Bd5 {[%clk 0:00:08.6]} 50. Bh7 {[%clk 0:00:19.6]} 50... Kf6 {[%clk 0:00:09.9]}
0-1

[Event "*** Titled Tuesday Blitz"]
[Site "Chess.com"]
[Date "2019.09.03"]
[Round "7"]
[White "karinachess1"]
[Black "2nd_life"]
[Result "0-1"]
[WhiteElo "2542"]
[BlackElo "2388"]
[TimeControl "180+2"]
[EndTime "16:37:12 PDT"]
[Termination "2nd_life won by resignation"]

1. e4 {[%clk 0:03:01.9]} 1... e5 {[%clk 0:03:00]} 2. Nf3 {[%clk 0:03:02.2]} 2...
Nc6 {[%clk 0:03:00.3]} 3. Bb5 {[%clk 0:03:03.3]} 3... a6 {[%clk 0:03:01.4]} 4.
Ba4 {[%clk 0:03:04.2]} 4... Nf6 {[%clk 0:03:02.6]} 5. O-O {[%clk 0:03:04.1]}
5... Be7 {[%clk 0:03:03.8]} 6. Re1 {[%clk 0:03:05.3]} 6... b5 {[%clk 0:03:04.8]}
7. Bb3 {[%clk 0:03:06.2]} 7... O-O {[%clk 0:03:05.3]} 8. d3 {[%clk 0:03:02]}
8... Re8 {[%clk 0:02:57]} 9. Nc3 {[%clk 0:02:49]} 9... Bb4 {[%clk 0:02:55.4]}
10. Ng5 {[%clk 0:02:33.3]} 10... Rf8 {[%clk 0:02:46.1]} 11. f4 {[%clk
0:02:08.8]} 11... Bxc3 {[%clk 0:02:33.7]} 12. bxc3 {[%clk 0:02:07.6]} 12... d6
{[%clk 0:02:34.8]} 13. a4 {[%clk 0:01:57.7]} 13... Rb8 {[%clk 0:02:20.4]} 14.
axb5 {[%clk 0:01:56.8]} 14... axb5 {[%clk 0:02:22.3]} 15. Rf1 {[%clk 0:01:53.7]}
15... Qe7 {[%clk 0:02:09.5]} 16. f5 {[%clk 0:01:35]} 16... h6 {[%clk 0:02:01.3]}
17. Nf3 {[%clk 0:01:36]} 17... Bb7 {[%clk 0:02:00.7]} 18. Qe1 {[%clk 0:01:26.5]}
18... Ra8 {[%clk 0:01:56.6]} 19. Rxa8 {[%clk 0:01:24.4]} 19... Rxa8 {[%clk
0:01:56.5]} 20. Qg3 {[%clk 0:01:25.2]} 20... Kf8 {[%clk 0:01:54.3]} 21. Be3
{[%clk 0:01:00]} 21... Na5 {[%clk 0:01:52.7]} 22. Ra1 {[%clk 0:00:46.2]} 22...
c5 {[%clk 0:01:50]} 23. Nd2 {[%clk 0:00:33.9]} 23... c4 {[%clk 0:01:34.3]} 24.
dxc4 {[%clk 0:00:35.1]} 24... bxc4 {[%clk 0:01:31.9]} 25. Nxc4 {[%clk
0:00:36.3]} 25... Nxc4 {[%clk 0:01:30]} 26. Rxa8+ {[%clk 0:00:36.5]} 26... Bxa8
{[%clk 0:01:31.2]} 27. Bxc4 {[%clk 0:00:38.1]} 27... Nxe4 {[%clk 0:01:27.1]} 28.
Qe1 {[%clk 0:00:39]} 28... Qd7 {[%clk 0:01:19]} 29. Qf1 {[%clk 0:00:25.7]} 29...
Qc6 {[%clk 0:01:11.6]} 30. Bb3 {[%clk 0:00:24.7]} 30... Qxc3 {[%clk 0:01:10.2]}
31. Bc1 {[%clk 0:00:22]} 31... Qd4+ {[%clk 0:01:08]} 32. Kh1 {[%clk 0:00:21]}
32... Nf2+ {[%clk 0:00:58.2]} 33. Kg1 {[%clk 0:00:22.2]} 33... Nd3+ {[%clk
0:00:39.4]} 34. Kh1 {[%clk 0:00:23.4]} 34... Nxc1 {[%clk 0:00:32.6]} 35. Qxc1
{[%clk 0:00:25.3]} 35... Qf2 {[%clk 0:00:32.8]} 36. Qg1 {[%clk 0:00:26.5]} 36...
Qxf5 {[%clk 0:00:31.6]} 37. Qe1 {[%clk 0:00:17.1]} 37... Qe4 {[%clk 0:00:30.1]}
38. Qxe4 {[%clk 0:00:15.5]} 38... Bxe4 {[%clk 0:00:30.5]} 39. Kg1 {[%clk
0:00:17.4]} 39... Ke7 {[%clk 0:00:30.9]} 40. Kf2 {[%clk 0:00:19.3]} 40... d5
{[%clk 0:00:31.6]} 41. g3 {[%clk 0:00:20.6]} 41... d4 {[%clk 0:00:32.2]} 42. Ke2
{[%clk 0:00:19.5]} 42... f5 {[%clk 0:00:32.9]} 43. Kd2 {[%clk 0:00:20.3]} 43...
g5 {[%clk 0:00:33.6]} 44. c3 {[%clk 0:00:21.5]} 44... dxc3+ {[%clk 0:00:34.2]}
45. Kxc3 {[%clk 0:00:23.4]} 45... f4 {[%clk 0:00:35.3]} 46. gxf4 {[%clk
0:00:25.3]} 46... gxf4 {[%clk 0:00:36.3]} 47. Kd2 {[%clk 0:00:25.2]} 47... Kf6
{[%clk 0:00:37.5]} 48. Ke2 {[%clk 0:00:27.1]} 48... Kg5 {[%clk 0:00:37.4]} 49.
Kf2 {[%clk 0:00:29]} 49... Kh4 {[%clk 0:00:38.2]} 50. Be6 {[%clk 0:00:29.2]}
50... Bc6 {[%clk 0:00:38]} 51. Bf5 {[%clk 0:00:29.8]} 51... e4 {[%clk
0:00:38.8]} 52. Be6 {[%clk 0:00:28.8]} 52... e3+ {[%clk 0:00:37.1]} 53. Ke2
{[%clk 0:00:30.2]} 53... Bg2 {[%clk 0:00:34]} 54. Bd7 {[%clk 0:00:28.4]} 54...
Bh3 {[%clk 0:00:33.9]} 55. Bc6 {[%clk 0:00:29.1]} 55... Bg4+ {[%clk 0:00:34.8]}
56. Kf1 {[%clk 0:00:29.3]} 56... f3 {[%clk 0:00:35.4]} 0-1

[Event "*** Titled Tuesday Blitz"]
[Site "Chess.com"]
[Date "2019.09.03"]
[Round "7"]
[White "Keithonsky"]
[Black "TheFireChess"]
[Result "0-1"]
[WhiteElo "2369"]
[BlackElo "2506"]
[TimeControl "180+2"]
[EndTime "16:37:15 PDT"]
[Termination "TheFireChess won by resignation"]

1. d4 {[%clk 0:03:01.9]} 1... d6 {[%clk 0:02:55.8]} 2. c4 {[%clk 0:03:00.5]}
2... f5 {[%clk 0:02:56]} 3. g3 {[%clk 0:03:01.2]} 3... Nf6 {[%clk 0:02:56.4]} 4.
Bg2 {[%clk 0:03:03.1]} 4... g6 {[%clk 0:02:57.8]} 5. Nc3 {[%clk 0:03:04.2]} 5...
Bg7 {[%clk 0:02:59]} 6. Nh3 {[%clk 0:03:01.5]} 6... O-O {[%clk 0:02:58.9]} 7. d5
{[%clk 0:02:56.8]} 7... c6 {[%clk 0:02:48.6]} 8. O-O {[%clk 0:02:53.2]} 8... e5
{[%clk 0:02:47.7]} 9. dxe6 {[%clk 0:02:53.2]} 9... Bxe6 {[%clk 0:02:49]} 10. Bf4
{[%clk 0:02:49.9]} 10... Bxc4 {[%clk 0:02:47.6]} 11. Bxd6 {[%clk 0:02:49.7]}
11... Re8 {[%clk 0:02:45.5]} 12. Ba3 {[%clk 0:02:41.2]} 12... h6 {[%clk
0:02:37.3]} 13. Qc2 {[%clk 0:02:36.7]} 13... Bf7 {[%clk 0:02:33.8]} 14. Rad1
{[%clk 0:02:32.1]} 14... Nbd7 {[%clk 0:02:34.4]} 15. Nf4 {[%clk 0:02:32.4]}
15... Qa5 {[%clk 0:02:18.8]} 16. Nd3 {[%clk 0:02:22.5]} 16... Rad8 {[%clk
0:02:11.7]} 17. Bb4 {[%clk 0:02:16.6]} 17... Qc7 {[%clk 0:02:12.3]} 18. a4
{[%clk 0:02:16.8]} 18... Ne5 {[%clk 0:01:36.4]} 19. Nb5 {[%clk 0:02:08.7]} 19...
Qb8 {[%clk 0:01:26.4]} 20. Nxe5 {[%clk 0:02:08.2]} 20... Qxe5 {[%clk 0:01:06.7]}
21. Nc3 {[%clk 0:01:49.6]} 21... Qe6 {[%clk 0:00:41.2]} 22. Bc5 {[%clk
0:01:38.2]} 22... b6 {[%clk 0:00:39.5]} 23. Bd4 {[%clk 0:01:34.4]} 23... c5
{[%clk 0:00:39.5]} 24. Be3 {[%clk 0:01:35.9]} 24... Ng4 {[%clk 0:00:36.4]} 25.
Bc1 {[%clk 0:01:32.2]} 25... Rxd1 {[%clk 0:00:23]} 26. Qxd1 {[%clk 0:01:26.7]}
26... Bxc3 {[%clk 0:00:20]} 27. bxc3 {[%clk 0:01:28.6]} 27... Qxe2 {[%clk
0:00:21.2]} 28. Qxe2 {[%clk 0:01:28.7]} 28... Rxe2 {[%clk 0:00:23.1]} 29. Bf3
{[%clk 0:01:30.6]} 29... Ra2 {[%clk 0:00:22]} 30. h3 {[%clk 0:01:31.8]} 30...
Nf6 {[%clk 0:00:22.7]} 31. Bxh6 {[%clk 0:01:32.3]} 31... Bd5 {[%clk 0:00:23.6]}
32. Bd1 {[%clk 0:01:31.6]} 32... Ne4 {[%clk 0:00:23.5]} 33. Re1 {[%clk
0:01:30.6]} 33... Nxf2 {[%clk 0:00:23.3]} 34. Be2 {[%clk 0:01:23.7]} 34... Nxh3+
{[%clk 0:00:23]} 35. Kh2 {[%clk 0:01:25.3]} 35... Nf2 {[%clk 0:00:24.1]} 36. Kg1
{[%clk 0:01:24.2]} 36... Ne4 {[%clk 0:00:24.6]} 37. Bf4 {[%clk 0:01:21.2]} 37...
Rxa4 {[%clk 0:00:25.6]} 38. Rd1 {[%clk 0:01:20]} 38... Nxc3 {[%clk 0:00:26.5]}
39. Rd2 {[%clk 0:01:18.2]} 39... Ra1+ {[%clk 0:00:26.8]} 40. Bf1 {[%clk
0:01:11.9]} 40... Bc4 {[%clk 0:00:27.7]} 41. Rd8+ {[%clk 0:01:11.2]} 41... Kf7
{[%clk 0:00:27.8]} 42. Rd7+ {[%clk 0:01:11.4]} 42... Ke8 {[%clk 0:00:29.1]} 43.
Rg7 {[%clk 0:01:12]} 43... Rxf1+ {[%clk 0:00:29.8]} 44. Kg2 {[%clk 0:01:13.9]}
44... Ne4 {[%clk 0:00:30.8]} 45. Rxa7 {[%clk 0:01:13.9]} 45... Rf2+ {[%clk
0:00:31.9]} 46. Kg1 {[%clk 0:01:15.5]} 46... Rf3 {[%clk 0:00:32.8]} 47. Ra8+
{[%clk 0:01:13.9]} 47... Kd7 {[%clk 0:00:33.2]} 48. Kg2 {[%clk 0:01:15.8]} 48...
Rb3 {[%clk 0:00:33.4]} 49. Ra7+ {[%clk 0:01:16.5]} 49... Kc6 {[%clk 0:00:33.9]}
50. Rc7+ {[%clk 0:01:17.7]} 50... Kb5 {[%clk 0:00:35]} 51. Rg7 {[%clk
0:01:19.6]} 51... Bd3 {[%clk 0:00:32]} 52. Rxg6 {[%clk 0:01:19.6]} 52... c4
{[%clk 0:00:33.4]} 53. Bc7 {[%clk 0:01:16.7]} 53... Kc5 {[%clk 0:00:31.8]} 54.
g4 {[%clk 0:01:14.2]} 54... fxg4 {[%clk 0:00:31.9]} 55. Rxg4 {[%clk 0:01:16.1]}
55... b5 {[%clk 0:00:32.3]} 56. Rg8 {[%clk 0:01:17.1]} 56... b4 {[%clk
0:00:32.6]} 57. Bf4 {[%clk 0:01:18.7]} 57... c3 {[%clk 0:00:29.1]} 58. Be3+
{[%clk 0:01:19.4]} 58... Kd5 {[%clk 0:00:29.8]} 59. Rd8+ {[%clk 0:01:20.7]}
59... Ke5 {[%clk 0:00:29.4]} 60. Rxd3 {[%clk 0:01:21.4]} 60... Rb2+ {[%clk
0:00:29.9]} 61. Kf3 {[%clk 0:01:20.9]} 61... Nd2+ {[%clk 0:00:26.2]} 62. Kg4
{[%clk 0:01:12.5]} 62... Ke4 {[%clk 0:00:25.1]} 63. Rd8 {[%clk 0:01:09.3]} 63...
Kxe3 {[%clk 0:00:25.9]} 64. Re8+ {[%clk 0:01:11.2]} 64... Kd3 {[%clk 0:00:27.2]}
65. Rd8+ {[%clk 0:01:12.3]} 65... Kc2 {[%clk 0:00:28.5]} 0-1

[Event "*** Titled Tuesday Blitz"]
[Site "Chess.com"]
[Date "2019.09.03"]
[Round "7"]
[White "goofypenguin96"]
[Black "GCamachoMartinez"]
[Result "0-1"]
[WhiteElo "2271"]
[BlackElo "2431"]
[TimeControl "180+2"]
[EndTime "16:37:24 PDT"]
[Termination "GCamachoMartinez won by resignation"]

1. e4 {[%clk 0:02:35.5]} 1... e5 {[%clk 0:02:59.1]} 2. Nf3 {[%clk 0:02:36.2]}
2... Nf6 {[%clk 0:02:59.4]} 3. Nxe5 {[%clk 0:02:36.2]} 3... d6 {[%clk
0:03:00.6]} 4. Nf3 {[%clk 0:02:36.7]} 4... Nxe4 {[%clk 0:03:01.8]} 5. Qe2 {[%clk
0:02:37.1]} 5... Qe7 {[%clk 0:03:02.4]} 6. d3 {[%clk 0:02:38.1]} 6... Nf6 {[%clk
0:03:03.4]} 7. Bg5 {[%clk 0:02:39.5]} 7... Qxe2+ {[%clk 0:03:04.3]} 8. Bxe2
{[%clk 0:02:41]} 8... Be7 {[%clk 0:03:06.1]} 9. Nc3 {[%clk 0:02:41.1]} 9... c6
{[%clk 0:03:07.6]} 10. O-O-O {[%clk 0:02:42.2]} 10... Na6 {[%clk 0:03:08.7]} 11.
h3 {[%clk 0:02:33.9]} 11... Nc7 {[%clk 0:03:10]} 12. Bd2 {[%clk 0:02:32.3]}
12... Ne6 {[%clk 0:03:10.6]} 13. g4 {[%clk 0:02:32.1]} 13... h6 {[%clk
0:03:02.7]} 14. Rdg1 {[%clk 0:02:29]} 14... d5 {[%clk 0:02:43.5]} 15. h4 {[%clk
0:02:27.5]} 15... g6 {[%clk 0:02:26]} 16. Ne5 {[%clk 0:02:14.5]} 16... Nd7
{[%clk 0:02:26]} 17. Nxd7 {[%clk 0:02:05.5]} 17... Bxd7 {[%clk 0:02:27.9]} 18.
f4 {[%clk 0:02:04.1]} 18... O-O-O {[%clk 0:02:25.5]} 19. Bf3 {[%clk 0:01:49.5]}
19... Bd6 {[%clk 0:02:23.5]} 20. Ne2 {[%clk 0:01:49.4]} 20... Rde8 {[%clk
0:02:11]} 21. h5 {[%clk 0:01:42.6]} 21... g5 {[%clk 0:02:06.6]} 22. fxg5 {[%clk
0:01:40.9]} 22... hxg5 {[%clk 0:02:08.5]} 23. c3 {[%clk 0:01:33.8]} 23... Reg8
{[%clk 0:01:40.7]} 24. Ng3 {[%clk 0:01:33.9]} 24... Nf4 {[%clk 0:01:34.4]} 25.
Kc2 {[%clk 0:01:28.2]} 25... Be6 {[%clk 0:01:31.5]} 26. Ne2 {[%clk 0:01:27.4]}
26... Nxe2 {[%clk 0:01:27.9]} 27. Bxe2 {[%clk 0:01:29.3]} 27... c5 {[%clk
0:01:25.9]} 28. Rf1 {[%clk 0:01:15.3]} 28... Be5 {[%clk 0:01:22.6]} 29. Be3
{[%clk 0:01:12.9]} 29... d4 {[%clk 0:01:23.6]} 30. Bd2 {[%clk 0:01:13.4]} 30...
f6 {[%clk 0:01:24.1]} 31. Bf3 {[%clk 0:01:11.2]} 31... Kc7 {[%clk 0:01:22.5]}
32. Re1 {[%clk 0:01:11.7]} 32... b6 {[%clk 0:01:22.6]} 33. Re2 {[%clk
0:01:12.2]} 33... Kd6 {[%clk 0:01:23.3]} 34. Rhe1 {[%clk 0:01:12.9]} 34... Bd5
{[%clk 0:01:20]} 35. Bxd5 {[%clk 0:01:10.9]} 35... Kxd5 {[%clk 0:01:21.9]} 36.
Rf1 {[%clk 0:01:12.2]} 36... Re8 {[%clk 0:01:07.6]} 37. Rf5 {[%clk 0:01:12.7]}
37... Kd6 {[%clk 0:01:04.2]} 38. c4 {[%clk 0:01:01.6]} 38... Re7 {[%clk
0:01:05]} 39. b4 {[%clk 0:01:01.5]} 39... Rhe8 {[%clk 0:01:05.2]} 40. a3 {[%clk
0:00:59.2]} 40... Re6 {[%clk 0:00:59]} 41. Re1 {[%clk 0:00:57.1]} 41... Rg8
{[%clk 0:00:56.3]} 42. bxc5+ {[%clk 0:00:53.9]} 42... bxc5 {[%clk 0:00:56.9]}
43. Rb1 {[%clk 0:00:54]} 43... Kc6 {[%clk 0:00:58.1]} 44. Rb5 {[%clk 0:00:53.5]}
44... a6 {[%clk 0:00:54.9]} 45. Ra5 {[%clk 0:00:46.1]} 45... Kb6 {[%clk
0:00:55.1]} 46. Kb3 {[%clk 0:00:41.8]} 46... Bd6 {[%clk 0:00:43]} 47. Ka4 {[%clk
0:00:38.7]} 47... Rf8 {[%clk 0:00:33.6]} 48. Bxg5 {[%clk 0:00:37.8]} 48... fxg5
{[%clk 0:00:33.8]} 49. Rxg5 {[%clk 0:00:34.8]} 49... Rf3 {[%clk 0:00:34.1]} 50.
Rg8 {[%clk 0:00:17.5]} 50... Rxd3 {[%clk 0:00:34.5]} 51. g5 {[%clk 0:00:17.6]}
51... Ree3 {[%clk 0:00:33.4]} 0-1

[Event "*** Titled Tuesday Blitz"]
[Site "Chess.com"]
[Date "2019.09.03"]
[Round "7"]
[White "boasovietica"]
[Black "abubakrtagelsir"]
[Result "1/2-1/2"]
[WhiteElo "2437"]
[BlackElo "2256"]
[TimeControl "180+2"]
[EndTime "16:37:44 PDT"]
[Termination "Game drawn by repetition"]

1. e4 {[%clk 0:03:01.9]} 1... d6 {[%clk 0:02:59.1]} 2. d4 {[%clk 0:03:01.9]}
2... Nf6 {[%clk 0:03:00.1]} 3. f3 {[%clk 0:03:02.4]} 3... c5 {[%clk 0:03:00.1]}
4. Ne2 {[%clk 0:03:00.2]} 4... cxd4 {[%clk 0:02:58.8]} 5. Nxd4 {[%clk
0:03:00.8]} 5... g6 {[%clk 0:02:59.7]} 6. Nc3 {[%clk 0:03:00.6]} 6... Bg7 {[%clk
0:03:00.4]} 7. Be3 {[%clk 0:03:00]} 7... O-O {[%clk 0:03:01]} 8. Qd2 {[%clk
0:02:59.5]} 8... Nc6 {[%clk 0:03:01.4]} 9. O-O-O {[%clk 0:02:55.2]} 9... Qa5
{[%clk 0:03:01.1]} 10. h4 {[%clk 0:02:40]} 10... Nxd4 {[%clk 0:02:56.8]} 11.
Bxd4 {[%clk 0:02:40.6]} 11... Be6 {[%clk 0:02:57.4]} 12. Qg5 {[%clk 0:02:27.8]}
12... Qxg5+ {[%clk 0:02:45.7]} 13. hxg5 {[%clk 0:02:28.4]} 13... Nh5 {[%clk
0:02:45.6]} 14. Bxg7 {[%clk 0:02:25.1]} 14... Kxg7 {[%clk 0:02:46.5]} 15. g4
{[%clk 0:02:14.5]} 15... Ng3 {[%clk 0:02:43.9]} 16. Rh3 {[%clk 0:02:14.4]} 16...
Nxf1 {[%clk 0:02:44]} 17. Rxf1 {[%clk 0:02:15]} 17... f6 {[%clk 0:02:44.4]} 18.
Rfh1 {[%clk 0:02:09.8]} 18... Rh8 {[%clk 0:02:43.6]} 19. gxf6+ {[%clk
0:02:06.5]} 19... exf6 {[%clk 0:02:43.8]} 20. Rh4 {[%clk 0:01:57]} 20... a6
{[%clk 0:02:38.5]} 21. Ne2 {[%clk 0:01:56.7]} 21... Bf7 {[%clk 0:02:33.6]} 22.
Kd2 {[%clk 0:01:43.2]} 22... d5 {[%clk 0:02:32.5]} 23. Nc3 {[%clk 0:01:35.3]}
23... Rad8 {[%clk 0:02:31.7]} 24. Kc1 {[%clk 0:01:33.1]} 24... dxe4 {[%clk
0:02:25.4]} 25. Nxe4 {[%clk 0:01:20.4]} 25... Bd5 {[%clk 0:02:24.8]} 26. g5
{[%clk 0:01:17.4]} 26... Bxe4 {[%clk 0:02:16.6]} 27. Rxe4 {[%clk 0:01:11.6]}
27... Rd7 {[%clk 0:02:14.3]} 28. f4 {[%clk 0:01:07.3]} 28... fxg5 {[%clk
0:02:14.2]} 29. fxg5 {[%clk 0:01:09.2]} 29... Rf8 {[%clk 0:02:14]} 30. Rhe1
{[%clk 0:01:06.8]} 30... Rff7 {[%clk 0:02:11.1]} 31. Re5 {[%clk 0:01:05.6]}
31... h5 {[%clk 0:02:06.4]} 32. gxh6+ {[%clk 0:00:58.2]} 32... Kxh6 {[%clk
0:02:06]} 33. Re6 {[%clk 0:00:55.7]} 33... Kg7 {[%clk 0:02:05.2]} 34. c4 {[%clk
0:00:53.1]} 34... Rc7 {[%clk 0:02:01.8]} 35. b3 {[%clk 0:00:51.7]} 35... b5
{[%clk 0:02:01.2]} 36. R1e4 {[%clk 0:00:52.2]} 36... bxc4 {[%clk 0:02:01.8]} 37.
bxc4 {[%clk 0:00:52.4]} 37... Rf6 {[%clk 0:02:01.2]} 38. Re7+ {[%clk 0:00:47.8]}
38... Rxe7 {[%clk 0:02:01.1]} 39. Rxe7+ {[%clk 0:00:49]} 39... Kh6 {[%clk
0:02:02.3]} 40. Kc2 {[%clk 0:00:49.5]} 40... g5 {[%clk 0:02:03.2]} 41. Kd3
{[%clk 0:00:49]} 41... g4 {[%clk 0:02:04.1]} 42. c5 {[%clk 0:00:48]} 42... Kg5
{[%clk 0:02:02.8]} 43. Kd4 {[%clk 0:00:40.7]} 43... g3 {[%clk 0:02:03.1]} 44.
Re1 {[%clk 0:00:34.2]} 44... Rf2 {[%clk 0:01:51.6]} 45. a3 {[%clk 0:00:17.2]}
45... g2 {[%clk 0:01:50.1]} 46. Rg1 {[%clk 0:00:17.2]} 46... Kf4 {[%clk
0:01:49.9]} 47. c6 {[%clk 0:00:16.7]} 47... Kf3 {[%clk 0:01:44.9]} 48. Kd5
{[%clk 0:00:12.1]} 48... Rc2 {[%clk 0:01:44.2]} 49. Kd6 {[%clk 0:00:10.5]} 49...
Kf2 {[%clk 0:01:41.2]} 50. Rxg2+ {[%clk 0:00:08.9]} 50... Kxg2 {[%clk 0:01:42]}
51. c7 {[%clk 0:00:10.3]} 51... a5 {[%clk 0:01:39.3]} 52. Kd7 {[%clk 0:00:11.4]}
52... Rd2+ {[%clk 0:01:31.4]} 53. Ke7 {[%clk 0:00:11.6]} 53... Re2+ {[%clk
0:01:31.7]} 54. Kd7 {[%clk 0:00:12.8]} 54... Rd2+ {[%clk 0:01:32.6]} 55. Ke7
{[%clk 0:00:14]} 55... Rc2 {[%clk 0:01:32.8]} 56. Kd7 {[%clk 0:00:14.5]} 56...
Rd2+ {[%clk 0:00:47.4]} 1/2-1/2